[Event "Titled Tuesday Blitz May 16 Early 2023"]
[White "Souleidis, Georgios"]
[Black "Golubev, Mikhail"]
[WhiteFideId "4206827"]
[BlackFideId "14100983"]
[WhiteElo "2401"]
[BlackElo "2374"]
[Result "1/2-1/2"]
[Round "09"]
[TimeControl "180+2"]
[Date "2023.05.16"]
[WhiteClock "0:00:03"]
[BlackClock "0:00:03"]

1. e4 {[%clk 0:03:00]}  c5 {[%clk 0:02:59]} 2. Be2 {[%clk 0:02:59]}  Nc6 {[%clk 0:02:55]} 3. d3 {[%clk 0:02:57]}  d5 {[%clk 0:02:42]} 4. f4 {[%clk 0:02:56]}  dxe4 {[%clk 0:02:26]} 5. dxe4 {[%clk 0:02:57]}  Qxd1+ {[%clk 0:02:26]} 6. Bxd1 {[%clk 0:02:58]}  Bd7 {[%clk 0:02:02]} 7. c3 {[%clk 0:02:57]}  e5 {[%clk 0:01:57]} 8. Nf3 {[%clk 0:02:54]}  exf4 {[%clk 0:01:46]} 9. Bxf4 {[%clk 0:02:55]}  O-O-O {[%clk 0:01:39]} 10. Bb3 {[%clk 0:02:51]}  Nf6 {[%clk 0:01:21]} 11. Nbd2 {[%clk 0:02:51]}  Be6 {[%clk 0:01:12]} 12. Bxe6+ {[%clk 0:02:38]}  fxe6 {[%clk 0:01:13]} 13. O-O-O {[%clk 0:02:35]}  h6 {[%clk 0:01:04]} 14. h3 {[%clk 0:02:21]}  Be7 {[%clk 0:01:03]} 15. Bh2 {[%clk 0:02:11]}  Rhf8 {[%clk 0:01:03]} 16. Rhe1 {[%clk 0:02:11]}  Nh5 {[%clk 0:00:59]} 17. Nc4 {[%clk 0:02:02]}  Rxd1+ {[%clk 0:00:50]} 18. Rxd1 {[%clk 0:01:57]}  Nf4 {[%clk 0:00:51]} 19. Bxf4 {[%clk 0:01:54]}  Rxf4 {[%clk 0:00:52]} 20. Re1 {[%clk 0:01:42]}  g5 {[%clk 0:00:50]} 21. Kd2 {[%clk 0:01:39]}  g4 {[%clk 0:00:28]} 22. hxg4 {[%clk 0:01:39]}  Rxg4 {[%clk 0:00:27]} 23. Re2 {[%clk 0:01:39]}  h5 {[%clk 0:00:26]} 24. a4 {[%clk 0:01:26]}  Kc7 {[%clk 0:00:24]} 25. Ke3 {[%clk 0:01:21]}  a6 {[%clk 0:00:23]} 26. Nce5 {[%clk 0:00:49]}  Nxe5 {[%clk 0:00:21]} 27. Nxe5 {[%clk 0:00:50]}  Rg3+ {[%clk 0:00:17]} 28. Kf2 {[%clk 0:00:23]}  Rg5 {[%clk 0:00:14]} 29. Nf3 {[%clk 0:00:23]}  Rg8 {[%clk 0:00:12]} 30. Rd2 {[%clk 0:00:22]}  b5 {[%clk 0:00:10]} 31. axb5 {[%clk 0:00:22]}  axb5 {[%clk 0:00:11]} 32. Ne5 {[%clk 0:00:20]}  Bd6 {[%clk 0:00:11]} 33. Nf3 {[%clk 0:00:16]}  Bg3+ {[%clk 0:00:09]} 34. Kf1 {[%clk 0:00:16]}  Kc6 {[%clk 0:00:09]} 35. b4 {[%clk 0:00:15]}  cxb4 {[%clk 0:00:08]} 36. cxb4 {[%clk 0:00:16]}  e5 {[%clk 0:00:07]} 37. Rc2+ {[%clk 0:00:16]}  Kd6 {[%clk 0:00:06]} 38. Rd2+ {[%clk 0:00:16]}  Kc6 {[%clk 0:00:06]} 39. Rc2+ {[%clk 0:00:17]}  Kd6 {[%clk 0:00:07]} 40. Rc5 {[%clk 0:00:13]}  Ra8 {[%clk 0:00:07]} 41. Rxb5 {[%clk 0:00:12]}  Ra1+ {[%clk 0:00:06]} 42. Ke2 {[%clk 0:00:12]}  Ra2+ {[%clk 0:00:06]} 43. Kd3 {[%clk 0:00:10]}  Rxg2 {[%clk 0:00:06]} 44. Rb6+ {[%clk 0:00:10]}  Kc7 {[%clk 0:00:05]} 45. Rh6 {[%clk 0:00:10]}  Rf2 {[%clk 0:00:03]} 46. Ke3 {[%clk 0:00:03]}  Bf4+ {[%clk 0:00:03]} 47. Kxf2 {[%clk 0:00:03]}  Bxh6 {[%clk 0:00:03]} 48. Nxe5 {[%clk 0:00:03]}  Bd2 {[%clk 0:00:02]} 49. Nd3 {[%clk 0:00:04]}  Kd6 {[%clk 0:00:02]} 50. Kf3 {[%clk 0:00:04]}  h4 {[%clk 0:00:02]} 51. Kg4 {[%clk 0:00:04]}  h3 {[%clk 0:00:03]} 52. Kxh3 {[%clk 0:00:05]}  Bxb4 {[%clk 0:00:03]} 53. Nxb4 {[%clk 0:00:03]}  Ke5 {[%clk 0:00:02]} 54. Nc2 {[%clk 0:00:03]}  Kxe4 {[%clk 0:00:03]} 1/2-1/2


[Site "https://www.chess.com"]

[Event "Titled Tuesday Blitz May 16 Early 2023"]
[White "Agibileg, Uurtsaikh"]
[Black "Aakanksha Hagawane"]
[WhiteFideId "4901606"]
[BlackFideId "25014510"]
[WhiteElo "2353"]
[BlackElo "2081"]
[Result "1-0"]
[Round "09"]
[TimeControl "180+2"]
[Date "2023.05.16"]
[WhiteClock "0:01:45"]
[BlackClock "0:00:00"]

1. d4 {[%clk 0:02:56]}  Nf6 {[%clk 0:02:59]} 2. c4 {[%clk 0:02:55]}  c5 {[%clk 0:02:56]} 3. d5 {[%clk 0:02:55]}  e6 {[%clk 0:02:56]} 4. Nc3 {[%clk 0:02:54]}  exd5 {[%clk 0:02:56]} 5. cxd5 {[%clk 0:02:55]}  d6 {[%clk 0:02:56]} 6. e4 {[%clk 0:02:55]}  g6 {[%clk 0:02:56]} 7. Bd3 {[%clk 0:02:54]}  Bg7 {[%clk 0:02:55]} 8. h3 {[%clk 0:02:54]}  O-O {[%clk 0:02:53]} 9. Nf3 {[%clk 0:02:55]}  b5 {[%clk 0:02:44]} 10. Nxb5 {[%clk 0:02:50]}  Re8 {[%clk 0:02:38]} 11. O-O {[%clk 0:02:49]}  Nxe4 {[%clk 0:02:37]} 12. Bxe4 {[%clk 0:02:50]}  Rxe4 {[%clk 0:02:37]} 13. Bg5 {[%clk 0:02:48]}  Qd7 {[%clk 0:02:13]} 14. Nc3 {[%clk 0:02:45]}  Re8 {[%clk 0:02:01]} 15. Re1 {[%clk 0:02:45]}  Ba6 {[%clk 0:01:57]} 16. Ne4 {[%clk 0:02:38]}  f5 {[%clk 0:01:30]} 17. Nf6+ {[%clk 0:02:34]}  Bxf6 {[%clk 0:01:29]} 18. Bxf6 {[%clk 0:02:35]}  Qf7 {[%clk 0:01:27]} 19. Bc3 {[%clk 0:02:23]}  Nd7 {[%clk 0:01:20]} 20. Ng5 {[%clk 0:02:22]}  Qf8 {[%clk 0:01:17]} 21. Ne6 {[%clk 0:02:16]}  Qf7 {[%clk 0:01:13]} 22. Qd2 {[%clk 0:02:15]}  Bb7 {[%clk 0:01:08]} 23. Qh6 {[%clk 0:02:14]}  Nf6 {[%clk 0:00:52]} 24. Ng5 {[%clk 0:02:08]}  Qg7 {[%clk 0:00:44]} 25. Qh4 {[%clk 0:02:06]}  Bxd5 {[%clk 0:00:38]} 26. Nxh7 {[%clk 0:01:58]}  Qxh7 {[%clk 0:00:35]} 27. Qxf6 {[%clk 0:01:58]}  Be4 {[%clk 0:00:20]} 28. f3 {[%clk 0:01:55]}  Bb7 {[%clk 0:00:16]} 29. Qxd6 {[%clk 0:01:55]}  Rad8 {[%clk 0:00:14]} 30. Qxc5 {[%clk 0:01:55]}  Bxf3 {[%clk 0:00:12]} 31. Rxe8+ {[%clk 0:01:52]}  Rxe8 {[%clk 0:00:11]} 32. Qc4+ {[%clk 0:01:52]}  Kf8 {[%clk 0:00:09]} 33. Bb4+ {[%clk 0:01:50]}  Kg7 {[%clk 0:00:07]} 34. Qc7+ {[%clk 0:01:50]}  Kh6 {[%clk 0:00:07]} 35. Bd2+ {[%clk 0:01:48]}  g5 {[%clk 0:00:05]} 36. Bxg5+ {[%clk 0:01:48]}  Kg6 {[%clk 0:00:05]} 37. Qxh7+ {[%clk 0:01:49]}  Kxh7 {[%clk 0:00:05]} 38. gxf3 {[%clk 0:01:50]}  Re2 {[%clk 0:00:03]} 39. Rb1 {[%clk 0:01:48]}  Kg6 {[%clk 0:00:03]} 40. h4 {[%clk 0:01:47]}  Kh5 {[%clk 0:00:00]} 41. a3 {[%clk 0:01:45]} 1-0


[Site "https://www.chess.com"]

[Event "Titled Tuesday Blitz May 16 Early 2023"]
[White "hakanazeri2"]
[Black "Tanmay Jain"]
[BlackFideId "45015481"]
[WhiteElo "2600"]
[BlackElo "2032"]
[Result "0-1"]
[Round "09"]
[TimeControl "180+2"]
[Date "2023.05.16"]
[WhiteClock "0:00:00"]
[BlackClock "0:00:10"]

1. e4 {[%clk 0:02:54]}  c5 {[%clk 0:02:57]} 2. Nf3 {[%clk 0:02:53]}  Nc6 {[%clk 0:02:54]} 3. d4 {[%clk 0:02:51]}  cxd4 {[%clk 0:02:54]} 4. Nxd4 {[%clk 0:02:52]}  d6 {[%clk 0:02:54]} 5. Nc3 {[%clk 0:02:50]}  e5 {[%clk 0:02:49]} 6. Ndb5 {[%clk 0:02:44]}  a6 {[%clk 0:02:49]} 7. Na3 {[%clk 0:02:35]}  Nf6 {[%clk 0:02:46]} 8. Bg5 {[%clk 0:02:35]}  Be7 {[%clk 0:02:47]} 9. Nc4 {[%clk 0:02:20]}  Nd4 {[%clk 0:02:18]} 10. Bxf6 {[%clk 0:02:10]}  Bxf6 {[%clk 0:02:18]} 11. Ne3 {[%clk 0:02:11]}  O-O {[%clk 0:02:15]} 12. Bd3 {[%clk 0:02:09]}  Be6 {[%clk 0:02:09]} 13. Ncd5 {[%clk 0:02:09]}  Bg5 {[%clk 0:02:08]} 14. c3 {[%clk 0:02:04]}  Bxe3 {[%clk 0:02:00]} 15. Nxe3 {[%clk 0:02:02]}  Nc6 {[%clk 0:01:59]} 16. Bc4 {[%clk 0:01:54]}  Qd7 {[%clk 0:01:42]} 17. O-O {[%clk 0:01:41]}  Ne7 {[%clk 0:01:36]} 18. Nd5 {[%clk 0:01:27]}  Bxd5 {[%clk 0:01:32]} 19. Bxd5 {[%clk 0:01:28]}  Rfd8 {[%clk 0:01:15]} 20. c4 {[%clk 0:01:25]}  Rab8 {[%clk 0:01:12]} 21. Qf3 {[%clk 0:01:11]}  Nxd5 {[%clk 0:00:56]} 22. cxd5 {[%clk 0:01:12]}  Rbc8 {[%clk 0:00:56]} 23. Rac1 {[%clk 0:01:10]}  Qb5 {[%clk 0:00:53]} 24. b3 {[%clk 0:01:07]}  Rc5 {[%clk 0:00:48]} 25. h4 {[%clk 0:01:00]}  Rdc8 {[%clk 0:00:47]} 26. Rxc5 {[%clk 0:00:54]}  Rxc5 {[%clk 0:00:48]} 27. h5 {[%clk 0:00:51]}  h6 {[%clk 0:00:48]} 28. Qg4 {[%clk 0:00:43]}  Qe8 {[%clk 0:00:47]} 29. Qe2 {[%clk 0:00:35]}  Qe7 {[%clk 0:00:42]} 30. g3 {[%clk 0:00:28]}  Qg5 {[%clk 0:00:37]} 31. Kg2 {[%clk 0:00:24]}  Rc3 {[%clk 0:00:31]} 32. b4 {[%clk 0:00:22]}  b5 {[%clk 0:00:28]} 33. a4 {[%clk 0:00:20]}  bxa4 {[%clk 0:00:25]} 34. Qxa6 {[%clk 0:00:19]}  Qxh5 {[%clk 0:00:25]} 35. Qxa4 {[%clk 0:00:18]}  Qf3+ {[%clk 0:00:25]} 36. Kg1 {[%clk 0:00:18]}  Qxe4 {[%clk 0:00:20]} 37. Qe8+ {[%clk 0:00:19]}  Kh7 {[%clk 0:00:20]} 38. Qxf7 {[%clk 0:00:20]}  Rb3 {[%clk 0:00:20]} 39. Rc1 {[%clk 0:00:13]}  Rxb4 {[%clk 0:00:18]} 40. Qe6 {[%clk 0:00:10]}  Rb1 {[%clk 0:00:15]} 41. Rxb1 {[%clk 0:00:10]}  Qxb1+ {[%clk 0:00:16]} 42. Kg2 {[%clk 0:00:10]}  Qg6 {[%clk 0:00:17]} 43. Qd7 {[%clk 0:00:04]}  Qe4+ {[%clk 0:00:17]} 44. Kh2 {[%clk 0:00:05]}  Qxd5 {[%clk 0:00:18]} 45. Qf5+ {[%clk 0:00:05]}  Kg8 {[%clk 0:00:18]} 46. Qc8+ {[%clk 0:00:05]}  Kf7 {[%clk 0:00:19]} 47. Qd7+ {[%clk 0:00:06]}  Kg6 {[%clk 0:00:19]} 48. Qg4+ {[%clk 0:00:05]}  Kf6 {[%clk 0:00:18]} 49. Qd7 {[%clk 0:00:05]}  Qe6 {[%clk 0:00:17]} 50. Qd8+ {[%clk 0:00:05]}  Kg6 {[%clk 0:00:18]} 51. Kg2 {[%clk 0:00:02]}  d5 {[%clk 0:00:17]} 52. f4 {[%clk 0:00:02]}  exf4 {[%clk 0:00:16]} 53. gxf4 {[%clk 0:00:03]}  Qe4+ {[%clk 0:00:16]} 54. Kg3 {[%clk 0:00:04]}  d4 {[%clk 0:00:17]} 55. Qd6+ {[%clk 0:00:03]}  Kh7 {[%clk 0:00:17]} 56. Qd7 {[%clk 0:00:03]}  d3 {[%clk 0:00:17]} 57. f5 {[%clk 0:00:03]}  Qe3+ {[%clk 0:00:17]} 58. Kg2 {[%clk 0:00:01]}  Qe2+ {[%clk 0:00:16]} 59. Kg3 {[%clk 0:00:01]}  Qe3+ {[%clk 0:00:15]} 60. Kg2 {[%clk 0:00:01]}  Qe4+ {[%clk 0:00:15]} 61. Kh2 {[%clk 0:00:01]}  h5 {[%clk 0:00:13]} 62. f6 {[%clk 0:00:01]}  Qe5+ {[%clk 0:00:13]} 63. Kg2 {[%clk 0:00:02]}  Qg5+ {[%clk 0:00:12]} 64. Kh2 {[%clk 0:00:00]}  Qxf6 {[%clk 0:00:10]} 0-1


[Site "https://www.chess.com"]

[Event "Titled Tuesday Blitz May 16 Early 2023"]
[White "Colbow, Collin"]
[Black "Dobre, Claudiu-Cristian"]
[WhiteFideId "16201132"]
[BlackFideId "1211854"]
[WhiteElo "2351"]
[BlackElo "2207"]
[Result "1-0"]
[Round "09"]
[TimeControl "180+2"]
[Date "2023.05.16"]
[WhiteClock "0:00:06"]
[BlackClock "0:00:00"]

1. d4 {[%clk 0:03:00]}  f5 {[%clk 0:02:56]} 2. Nc3 {[%clk 0:02:59]}  d5 {[%clk 0:02:51]} 3. Bf4 {[%clk 0:02:58]}  Nf6 {[%clk 0:02:45]} 4. f3 {[%clk 0:02:54]}  c5 {[%clk 0:02:05]} 5. e3 {[%clk 0:02:49]}  a6 {[%clk 0:02:00]} 6. Qd2 {[%clk 0:02:31]}  e6 {[%clk 0:01:55]} 7. O-O-O {[%clk 0:02:31]}  Nc6 {[%clk 0:01:55]} 8. g4 {[%clk 0:02:11]}  fxg4 {[%clk 0:01:05]} 9. fxg4 {[%clk 0:02:12]}  cxd4 {[%clk 0:01:06]} 10. exd4 {[%clk 0:02:11]}  Bb4 {[%clk 0:01:06]} 11. Bg2 {[%clk 0:02:02]}  O-O {[%clk 0:01:04]} 12. g5 {[%clk 0:01:56]}  Ne4 {[%clk 0:01:02]} 13. Bxe4 {[%clk 0:01:56]}  dxe4 {[%clk 0:01:02]} 14. Nge2 {[%clk 0:01:50]}  Ne7 {[%clk 0:00:53]} 15. Qe3 {[%clk 0:01:44]}  Nd5 {[%clk 0:00:53]} 16. Nxd5 {[%clk 0:01:12]}  exd5 {[%clk 0:00:53]} 17. Rhf1 {[%clk 0:01:11]}  Bg4 {[%clk 0:00:49]} 18. Rf2 {[%clk 0:00:49]}  Be7 {[%clk 0:00:49]} 19. Rg1 {[%clk 0:00:47]}  Bxe2 {[%clk 0:00:48]} 20. Rxe2 {[%clk 0:00:42]}  Qd7 {[%clk 0:00:47]} 21. h4 {[%clk 0:00:40]}  Rf5 {[%clk 0:00:38]} 22. Rf2 {[%clk 0:00:33]}  Raf8 {[%clk 0:00:38]} 23. Rgf1 {[%clk 0:00:34]}  Qa4 {[%clk 0:00:27]} 24. a3 {[%clk 0:00:25]}  Qc4 {[%clk 0:00:27]} 25. Kb1 {[%clk 0:00:22]}  b5 {[%clk 0:00:26]} 26. Be5 {[%clk 0:00:20]}  Qxf1+ {[%clk 0:00:25]} 27. Rxf1 {[%clk 0:00:19]}  Rxf1+ {[%clk 0:00:25]} 28. Ka2 {[%clk 0:00:20]}  Rc8 {[%clk 0:00:18]} 29. Qb3 {[%clk 0:00:20]}  Rc4 {[%clk 0:00:18]} 30. Qh3 {[%clk 0:00:16]}  Kf7 {[%clk 0:00:12]} 31. Qxf1+ {[%clk 0:00:16]}  Kg6 {[%clk 0:00:09]} 32. Qe2 {[%clk 0:00:15]}  a5 {[%clk 0:00:07]} 33. Kb1 {[%clk 0:00:10]}  a4 {[%clk 0:00:07]} 34. Qg4 {[%clk 0:00:10]}  Kf7 {[%clk 0:00:06]} 35. Qf5+ {[%clk 0:00:10]}  Ke8 {[%clk 0:00:07]} 36. Qxh7 {[%clk 0:00:07]}  e3 {[%clk 0:00:06]} 37. Qd3 {[%clk 0:00:07]}  b4 {[%clk 0:00:03]} 38. axb4 {[%clk 0:00:08]}  Bxb4 {[%clk 0:00:03]} 39. Qxe3 {[%clk 0:00:08]}  Kd7 {[%clk 0:00:04]} 40. Bxg7 {[%clk 0:00:08]}  a3 {[%clk 0:00:03]} 41. bxa3 {[%clk 0:00:07]}  Bd6 {[%clk 0:00:02]} 42. h5 {[%clk 0:00:07]}  Rc6 {[%clk 0:00:02]} 43. h6 {[%clk 0:00:07]}  Rb6+ {[%clk 0:00:01]} 44. Kc1 {[%clk 0:00:07]}  Be7 {[%clk 0:00:00]} 45. h7 {[%clk 0:00:06]} 1-0


[Site "https://www.chess.com"]

[Event "Titled Tuesday Blitz May 16 Early 2023"]
[White "Jakubowski, Krzysztof"]
[Black "Bettalli, Francesco"]
[WhiteFideId "1112848"]
[BlackFideId "2816453"]
[WhiteElo "2359"]
[BlackElo "2216"]
[Result "1-0"]
[Round "09"]
[TimeControl "180+2"]
[Date "2023.05.16"]
[WhiteClock "0:01:38"]
[BlackClock "0:01:18"]

1. e4 {[%clk 0:03:00]}  e5 {[%clk 0:02:57]} 2. Nf3 {[%clk 0:03:00]}  Nf6 {[%clk 0:02:57]} 3. Nxe5 {[%clk 0:02:57]}  Nc6 {[%clk 0:02:58]} 4. Nxc6 {[%clk 0:02:56]}  dxc6 {[%clk 0:02:59]} 5. Nc3 {[%clk 0:02:51]}  Bc5 {[%clk 0:02:58]} 6. f3 {[%clk 0:02:48]}  Nh5 {[%clk 0:02:50]} 7. Qe2 {[%clk 0:02:42]}  Qh4+ {[%clk 0:02:49]} 8. Kd1 {[%clk 0:02:39]}  Ng3 {[%clk 0:02:38]} 9. Qe1 {[%clk 0:02:36]}  Bd6 {[%clk 0:02:32]} 10. Bc4 {[%clk 0:02:27]}  Qg5 {[%clk 0:02:26]} 11. d3 {[%clk 0:02:19]}  Qg6 {[%clk 0:02:20]} 12. hxg3 {[%clk 0:02:19]}  Bxg3 {[%clk 0:02:21]} 13. Qe3 {[%clk 0:02:18]}  Bd7 {[%clk 0:02:19]} 14. Qg5 {[%clk 0:02:16]}  h6 {[%clk 0:02:00]} 15. Qxg6 {[%clk 0:02:14]}  fxg6 {[%clk 0:02:01]} 16. Ne2 {[%clk 0:02:09]}  Bd6 {[%clk 0:01:59]} 17. Bf4 {[%clk 0:02:09]}  g5 {[%clk 0:01:58]} 18. Bxd6 {[%clk 0:02:08]}  cxd6 {[%clk 0:01:59]} 19. a4 {[%clk 0:02:07]}  Ke7 {[%clk 0:01:59]} 20. Kd2 {[%clk 0:02:07]}  Raf8 {[%clk 0:02:00]} 21. a5 {[%clk 0:02:06]}  g4 {[%clk 0:02:00]} 22. f4 {[%clk 0:02:05]}  g5 {[%clk 0:01:55]} 23. f5 {[%clk 0:02:00]}  Kf6 {[%clk 0:01:53]} 24. Ng3 {[%clk 0:01:59]}  Ke5 {[%clk 0:01:54]} 25. Ke3 {[%clk 0:01:57]}  d5 {[%clk 0:01:53]} 26. d4+ {[%clk 0:01:55]}  Kd6 {[%clk 0:01:52]} 27. e5+ {[%clk 0:01:55]}  Kc7 {[%clk 0:01:52]} 28. Bd3 {[%clk 0:01:56]}  Re8 {[%clk 0:01:50]} 29. b4 {[%clk 0:01:53]}  Kb8 {[%clk 0:01:39]} 30. Rh2 {[%clk 0:01:52]}  b6 {[%clk 0:01:39]} 31. Rah1 {[%clk 0:01:50]}  c5 {[%clk 0:01:34]} 32. Rxh6 {[%clk 0:01:48]}  Rxh6 {[%clk 0:01:31]} 33. Rxh6 {[%clk 0:01:47]}  cxb4 {[%clk 0:01:27]} 34. a6 {[%clk 0:01:40]}  Ba4 {[%clk 0:01:18]} 35. f6 {[%clk 0:01:38]}  b3 {[%clk 0:01:18]} 36. cxb3 {[%clk 0:01:38]}  Bxb3 {[%clk 0:01:18]} 37. f7 {[%clk 0:01:38]} 1-0


[Site "https://www.chess.com"]

[Event "Titled Tuesday Blitz May 16 Early 2023"]
[White "Mortazavi, Ali"]
[Black "Sowul, Bartosz"]
[WhiteFideId "401323"]
[BlackFideId "1137590"]
[WhiteElo "2339"]
[BlackElo "2188"]
[Result "0-1"]
[Round "09"]
[TimeControl "180+2"]
[Date "2023.05.16"]
[WhiteClock "0:00:38"]
[BlackClock "0:01:02"]

1. Nf3 {[%clk 0:03:00]}  Nf6 {[%clk 0:02:56]} 2. g3 {[%clk 0:03:00]}  d5 {[%clk 0:02:56]} 3. Bg2 {[%clk 0:03:01]}  Bg4 {[%clk 0:02:56]} 4. O-O {[%clk 0:03:02]}  c6 {[%clk 0:02:55]} 5. d3 {[%clk 0:03:02]}  Nbd7 {[%clk 0:02:55]} 6. c4 {[%clk 0:03:03]}  e6 {[%clk 0:02:51]} 7. Be3 {[%clk 0:03:03]}  Bd6 {[%clk 0:02:51]} 8. Qb3 {[%clk 0:03:02]}  Qc8 {[%clk 0:02:44]} 9. Nc3 {[%clk 0:03:02]}  O-O {[%clk 0:02:41]} 10. Rac1 {[%clk 0:03:03]}  dxc4 {[%clk 0:02:39]} 11. Qxc4 {[%clk 0:03:04]}  Bxf3 {[%clk 0:02:36]} 12. Bxf3 {[%clk 0:02:40]}  Ne5 {[%clk 0:02:36]} 13. Qa4 {[%clk 0:02:04]}  Nxf3+ {[%clk 0:02:35]} 14. exf3 {[%clk 0:02:05]}  Qd7 {[%clk 0:02:25]} 15. Ne4 {[%clk 0:01:59]}  Nd5 {[%clk 0:02:19]} 16. Rfd1 {[%clk 0:01:52]}  Be7 {[%clk 0:02:15]} 17. Kg2 {[%clk 0:01:50]}  Rfd8 {[%clk 0:02:13]} 18. a3 {[%clk 0:01:50]}  a6 {[%clk 0:02:10]} 19. Qc2 {[%clk 0:01:48]}  Rac8 {[%clk 0:01:58]} 20. Qe2 {[%clk 0:01:48]}  h6 {[%clk 0:01:57]} 21. h4 {[%clk 0:01:48]}  Bf6 {[%clk 0:01:50]} 22. b4 {[%clk 0:01:35]}  Qe7 {[%clk 0:01:39]} 23. Bc5 {[%clk 0:01:34]}  Qc7 {[%clk 0:01:34]} 24. Rc2 {[%clk 0:01:26]}  Be7 {[%clk 0:01:25]} 25. Rdc1 {[%clk 0:01:23]}  Bxc5 {[%clk 0:01:22]} 26. bxc5 {[%clk 0:01:23]}  b6 {[%clk 0:01:14]} 27. cxb6 {[%clk 0:01:22]}  Qxb6 {[%clk 0:01:15]} 28. f4 {[%clk 0:01:15]}  Qa5 {[%clk 0:01:07]} 29. Rxc6 {[%clk 0:01:08]}  Rxc6 {[%clk 0:01:08]} 30. Rxc6 {[%clk 0:01:08]}  Qxa3 {[%clk 0:01:09]} 31. d4 {[%clk 0:01:08]}  Qa4 {[%clk 0:01:04]} 32. Nd6 {[%clk 0:00:38]}  Qxc6 {[%clk 0:01:02]} 0-1


[Site "https://www.chess.com"]

[Event "Titled Tuesday Blitz May 16 Early 2023"]
[White "Rom, Jasper"]
[Black "Shevtchenko, Olesya"]
[WhiteFideId "2023733"]
[BlackFideId "24131890"]
[WhiteElo "2233"]
[BlackElo "2003"]
[Result "1-0"]
[Round "09"]
[TimeControl "180+2"]
[Date "2023.05.16"]
[WhiteClock "0:01:45"]
[BlackClock "0:01:57"]

1. e4 {[%clk 0:03:00]}  c6 {[%clk 0:02:59]} 2. d4 {[%clk 0:03:00]}  d5 {[%clk 0:03:00]} 3. Nd2 {[%clk 0:03:00]}  dxe4 {[%clk 0:03:00]} 4. Nxe4 {[%clk 0:03:00]}  Bf5 {[%clk 0:03:01]} 5. Ng3 {[%clk 0:03:00]}  Bg6 {[%clk 0:03:01]} 6. h4 {[%clk 0:03:00]}  h6 {[%clk 0:03:01]} 7. Nh3 {[%clk 0:03:01]}  Bh7 {[%clk 0:03:00]} 8. Nf4 {[%clk 0:02:58]}  e5 {[%clk 0:03:00]} 9. dxe5 {[%clk 0:02:53]}  Qa5+ {[%clk 0:03:00]} 10. c3 {[%clk 0:02:40]}  Qxe5+ {[%clk 0:03:01]} 11. Be2 {[%clk 0:02:40]}  Nd7 {[%clk 0:02:59]} 12. O-O {[%clk 0:02:32]}  O-O-O {[%clk 0:02:59]} 13. Nd3 {[%clk 0:02:27]}  Qf6 {[%clk 0:02:55]} 14. Qa4 {[%clk 0:02:22]}  Nc5 {[%clk 0:02:22]} 15. Nxc5 {[%clk 0:02:01]}  Bxc5 {[%clk 0:02:23]} 16. Bf4 {[%clk 0:02:01]}  Qxh4 {[%clk 0:02:08]} 17. Rad1 {[%clk 0:01:49]}  Nf6 {[%clk 0:02:03]} 18. Qxc6+ {[%clk 0:01:46]}  bxc6 {[%clk 0:01:57]} 19. Ba6# {[%clk 0:01:45]} 1-0


[Site "https://www.chess.com"]

[Event "Titled Tuesday Blitz May 16 Early 2023"]
[White "Kleiman, Jake"]
[Black "Avazkhonov, Alikhon"]
[WhiteFideId "2020041"]
[BlackFideId "14208504"]
[WhiteElo "2548"]
[BlackElo "1739"]
[Result "1/2-1/2"]
[Round "09"]
[TimeControl "180+2"]
[Date "2023.05.16"]
[WhiteClock "0:00:07"]
[BlackClock "0:00:05"]

1. d4 {[%clk 0:03:00]}  Nf6 {[%clk 0:02:59]} 2. Bf4 {[%clk 0:03:01]}  d5 {[%clk 0:02:58]} 3. e3 {[%clk 0:03:02]}  e6 {[%clk 0:02:58]} 4. Nf3 {[%clk 0:03:01]}  Bd6 {[%clk 0:02:58]} 5. Bg3 {[%clk 0:03:01]}  O-O {[%clk 0:02:58]} 6. Bd3 {[%clk 0:03:02]}  c5 {[%clk 0:02:59]} 7. c3 {[%clk 0:03:02]}  Nc6 {[%clk 0:02:59]} 8. Nbd2 {[%clk 0:03:00]}  b6 {[%clk 0:02:59]} 9. Ne5 {[%clk 0:02:59]}  Bb7 {[%clk 0:02:59]} 10. f4 {[%clk 0:02:58]}  Ne7 {[%clk 0:02:59]} 11. Bh4 {[%clk 0:02:55]}  Ne4 {[%clk 0:02:58]} 12. O-O {[%clk 0:02:53]}  f6 {[%clk 0:02:48]} 13. Nef3 {[%clk 0:02:46]}  Nf5 {[%clk 0:02:49]} 14. Bf2 {[%clk 0:02:33]}  cxd4 {[%clk 0:01:45]} 15. cxd4 {[%clk 0:02:21]}  Nxf2 {[%clk 0:01:33]} 16. Kxf2 {[%clk 0:02:21]}  Rc8 {[%clk 0:01:13]} 17. Qb3 {[%clk 0:02:17]}  Qc7 {[%clk 0:00:34]} 18. Rfe1 {[%clk 0:02:06]}  Kh8 {[%clk 0:00:33]} 19. Nb1 {[%clk 0:01:32]}  g5 {[%clk 0:00:08]} 20. g3 {[%clk 0:01:20]}  gxf4 {[%clk 0:00:07]} 21. exf4 {[%clk 0:01:18]}  Rfe8 {[%clk 0:00:04]} 22. Nc3 {[%clk 0:01:15]}  Qf7 {[%clk 0:00:04]} 23. Bxf5 {[%clk 0:01:11]}  exf5 {[%clk 0:00:05]} 24. Rxe8+ {[%clk 0:01:09]}  Rxe8 {[%clk 0:00:06]} 25. Re1 {[%clk 0:01:09]}  Rxe1 {[%clk 0:00:06]} 26. Nxe1 {[%clk 0:01:10]}  Qh5 {[%clk 0:00:06]} 27. Nf3 {[%clk 0:01:09]}  Qe8 {[%clk 0:00:04]} 28. Qa4 {[%clk 0:01:00]}  Qxa4 {[%clk 0:00:04]} 29. Nxa4 {[%clk 0:01:01]}  Kg7 {[%clk 0:00:02]} 30. Nh4 {[%clk 0:00:59]}  Bc8 {[%clk 0:00:02]} 31. Ng2 {[%clk 0:00:55]}  Be6 {[%clk 0:00:02]} 32. Ne3 {[%clk 0:00:54]}  Bb4 {[%clk 0:00:02]} 33. Ke2 {[%clk 0:00:47]}  b5 {[%clk 0:00:02]} 34. Nc3 {[%clk 0:00:32]}  Bxc3 {[%clk 0:00:02]} 35. bxc3 {[%clk 0:00:33]}  Kf7 {[%clk 0:00:02]} 36. Kd2 {[%clk 0:00:29]}  Ke7 {[%clk 0:00:03]} 37. Kc2 {[%clk 0:00:30]}  Kd6 {[%clk 0:00:03]} 38. Kb3 {[%clk 0:00:30]}  Kc6 {[%clk 0:00:04]} 39. Kb4 {[%clk 0:00:30]}  Kb6 {[%clk 0:00:04]} 40. Kb3 {[%clk 0:00:30]}  a5 {[%clk 0:00:05]} 41. a3 {[%clk 0:00:29]}  Kc6 {[%clk 0:00:04]} 42. Kc2 {[%clk 0:00:27]}  Kb6 {[%clk 0:00:04]} 43. Kd2 {[%clk 0:00:27]}  Kc6 {[%clk 0:00:04]} 44. Ke2 {[%clk 0:00:27]}  Kb6 {[%clk 0:00:04]} 45. Kf3 {[%clk 0:00:28]}  Kc6 {[%clk 0:00:04]} 46. Kg2 {[%clk 0:00:28]}  Kb6 {[%clk 0:00:03]} 47. Kh3 {[%clk 0:00:24]}  b4 {[%clk 0:00:03]} 48. cxb4 {[%clk 0:00:23]}  axb4 {[%clk 0:00:04]} 49. axb4 {[%clk 0:00:23]}  Kb5 {[%clk 0:00:05]} 50. Kh4 {[%clk 0:00:18]}  Kxb4 {[%clk 0:00:05]} 51. Kh5 {[%clk 0:00:19]}  Kc3 {[%clk 0:00:06]} 52. Kh6 {[%clk 0:00:19]}  Kxd4 {[%clk 0:00:07]} 53. Ng2 {[%clk 0:00:18]}  Ke4 {[%clk 0:00:06]} 54. Kxh7 {[%clk 0:00:17]}  d4 {[%clk 0:00:07]} 55. Ne1 {[%clk 0:00:17]}  Bb3 {[%clk 0:00:03]} 56. Kg6 {[%clk 0:00:15]}  Ke3 {[%clk 0:00:04]} 57. h4 {[%clk 0:00:13]}  Ke2 {[%clk 0:00:03]} 58. h5 {[%clk 0:00:11]}  Kxe1 {[%clk 0:00:02]} 59. h6 {[%clk 0:00:12]}  d3 {[%clk 0:00:02]} 60. h7 {[%clk 0:00:12]}  d2 {[%clk 0:00:02]} 61. h8=Q {[%clk 0:00:13]}  d1=Q {[%clk 0:00:03]} 62. Qh1+ {[%clk 0:00:06]}  Kf2 {[%clk 0:00:03]} 63. Qxd1 {[%clk 0:00:07]}  Bxd1 {[%clk 0:00:04]} 64. Kxf5 {[%clk 0:00:06]}  Kxg3 {[%clk 0:00:04]} 65. Kxf6 {[%clk 0:00:07]}  Kxf4 {[%clk 0:00:05]} 1/2-1/2


[Site "https://www.chess.com"]